Cogmind - Beta 14 @@@ ROGUE MODE // 2024.11.14 @ 02:59:16 Player: Serule Result: Destroyed by L-31 Rogue with Katana Performance ------------- Evolutions (1) 500 Regions Visited (4) 800 Robots Destroyed (78) 390 Value Destroyed (1816) 1816 Prototype IDs (4) 80 Alien Tech Used (0) 0 Bonus (211) 211 TOTAL SCORE: 3797 Bonus ------- High Alert Combat Kills 118 Follower Combat Kills 93 Cogmind --------- Core Integrity 0/400 Matter 299/300 Energy 280/280 System Corruption 1% Temperature Cool (0) Movement Walking (120) Location -9/Storage Parts ------- > --- POWER (1) -------- Heavy Ion Engine > --- PROPULSION (3) --- Aluminum Leg Aluminum Leg Aluminum Leg > --- UTILITY (3) ------ Small Storage Unit Sensor Array Signal Interpreter > --- WEAPON (2) ------- Small Laser > --- INVENTORY (8) ---- Ion Engine Light Ion Engine Medium Matter Pod (100) Large Matter Pod (150) Light Armor Plating Heavy Assault Rifle Mining Laser Hammer Peak State ------------ > --- POWER ------------ Light Deuterium Engine > --- PROPULSION ------- Aluminum Leg Aluminum Leg Aluminum Leg > --- UTILITY ---------- Small Storage Unit Experimental Sensor Array Splice Drone Bay > --- WEAPON ----------- Improved Medium Laser High-powered Shotgun > --- INVENTORY -------- Medium Matter Pod Large Matter Pod Structural Scanner ECM Suite Light Armor Plating Light Armor Plating Heavy Assault Rifle Mining Laser [Rating: 29] Favorites ----------- Power Light Ion Engine Engine Light Ion Engine Propulsion Aluminum Leg Leg Aluminum Leg Flight Unit Flight Unit Utility Small Storage Unit Device Experimental Sensor Array Storage Small Storage Unit Processor Signal Interpreter Protection Light Armor Plating Weapon Assault Rifle Energy Gun Beam Rifle Ballistic Gun Assault Rifle Launcher Grenade Launcher Build | -11 -10 -10 -9 -9 ------- Run | Yrd Mat Min Mat Sto Slots Evolved 2 | . . . 2 . Power . | . . . . . Propulsion 1 | . . . 1 . Utility 1 | . . . 1 . Weapon . | . . . . . Parts Attached 56 | 7 12 6 15 16 Power 10 | 1 2 2 2 3 Engine 10 | 1 2 2 2 3 Core . | . . . . . Reactor . | . . . . . Propulsion 19 | 2 5 1 7 4 Treads . | . . . . . Leg 16 | 2 5 1 4 4 Wheel . | . . . . . Hover . | . . . . . Flight 3 | . . . 3 . Utility 11 | 2 1 2 3 3 Device 7 | 1 1 2 1 2 Storage 1 | 1 . . . . Processor 2 | . . . 2 . Hackware . | . . . . . Protection 1 | . . . . 1 Artifact . | . . . . . Weapon 16 | 2 4 1 3 6 Energy Gun 7 | . 1 1 2 3 Energy Cannon . | . . . . . Ballistic Gun 8 | 2 2 . 1 3 Ballistic Cannon . | . . . . . Launcher 1 | . 1 . . . Special Weapon . | . . . . . Impact Weapon . | . . . . . Slashing Weapon . | . . . . . Piercing Weapon . | . . . . . Special Melee Weapon . | . . . . . Unidentified Prototypes 4 | . . 2 1 1 Parts Lost 12 | . 1 . 1 10 Power . | . . . . . Propulsion 5 | . 1 . . 4 Utility 2 | . . . . 2 Weapon 5 | . . . 1 4 Highest Loss Streak 4 | . 1 . 1 4 To Critical Strikes . | . . . . . Average Slot Usage (%) 96 | . 97 100 95 93 Engine 12 | . 14 14 11 11 Leg 27 | . 26 28 28 28 Device 12 | . 13 14 16 8 Storage 12 | . 14 14 11 11 Processor 4 | . . . 5 11 Energy Gun 8 | . . 10 11 12 Ballistic Gun 10 | . 18 3 7 9 Launcher 5 | . 8 14 3 . Peak Build Rating 29 | 9 9 19 29 23 Average Rating 14 | 6 8 13 24 15 On Entrance 11 | . 9 7 19 21 Naked Turns . | . . . . . Heaviest Build 27 | 13 14 24 27 22 Greatest Support 30 | 20 20 20 30 30 Greatest Overweight (x) 7 | 1 4 1 6 7 Average Overweight (x) . | . . . . . Largest Inventory Capacity 8 | 8 8 8 8 8 Average Capacity 7 | 7 8 8 8 8 Most Carried 8 | 7 8 8 8 8 Average Carried 7 | 4 7 7 7 7 Final Capacity 8 | 8 8 8 8 8 Final Carried 8 | 7 7 8 8 8 Class Distribution -------------------- 66% | Mutant 33% | Scavenger-Mutant Dominant Class ---------------- Mutant | -10/Materials Mutant | -10/Mines Scavenger-Mutant | -9/Materials Scavenger-Mutant | -9/Storage Resources | -11 -10 -10 -9 -9 ----------- Run | Yrd Mat Min Mat Sto Matter Collected 1712 | 477 272 279 387 297 Remotely . | . . . . . Salvage Created 2489 | 301 492 63 488 1145 Parts 189 | 33 40 3 30 83 Haulers Intercepted . | . . . . . Recyclers Shooed 4 | . 1 . . 3 Parts Field Recycled . | . . . . . Retrieved Matter . | . . . . . Parts Self-Destructed . | . . . . . Prevented . | . . . . . Kills | -11 -10 -10 -9 -9 ------- Run | Yrd Mat Min Mat Sto Combat Hostiles Destroyed 48 | . 14 2 10 22 Guns 34 | . 4 . 9 21 AOE 14 | . 10 2 1 1 Classes Destroyed 9 | 3 4 . 1 1 Worker 8 | 2 3 . . 3 Builder 1 | . 1 . . . Tunneler 10 | 9 1 . . . Recycler 6 | 1 3 . . 2 Watcher 5 | . 2 . 2 1 Swarmer 13 | . 9 . . 4 Grunt 21 | . 5 2 5 9 Brawler 1 | . . . . 1 Sentry 13 | . . . 5 8 Best Kill Streak 11 | 3 11 2 2 10 Combat Bots Only 6 | . 6 2 2 4 Max Kills in Single Turn 5 | 2 5 1 1 2 Gunslinging 1 | . . . . 1 Exploded 2 | . 2 1 1 1 Melee . | . . . . . Uniques/NPCs Destroyed . | . . . . . Combat | -11 -10 -10 -9 -9 -------- Run | Yrd Mat Min Mat Sto Hostile Shots Fired 232 | . 46 5 56 125 Missed 66 | . 18 2 14 32 Damage Taken 2394 | . 349 59 582 1404 Core 470 | . 46 . 83 341 Absorbed by Shields . | . . . . . Regen/Repaired (Parts) 107 | . . . . 107 Core Remaining (%) 90 | 100 . 81 . . Volleys Fired 185 | 35 41 2 35 72 Largest 2 | 2 2 2 2 2 Hottest 96 | 40 50 86 86 96 Shots Fired 335 | 70 65 4 62 134 Gun 314 | 70 50 2 58 134 Cannon . | . . . . . Launcher 21 | . 15 2 4 . Special . | . . . . . Kinetic 191 | 70 50 . 23 48 Thermal 81 | . . 2 21 58 Explosive 21 | . 15 2 4 . Electromagnetic 42 | . . . 14 28 Robot Hit Streak 13 | 7 7 3 10 13 Robot Miss Streak 10 | 3 5 4 3 10 Penetration Max . | . . . . . Secondary Targets 3 | . 1 . . 2 Max Gunslinging Chain 1 | . 1 . . 1 Shots Hit Robots 190 | 36 25 3 43 83 Core Hits 123 | 13 31 4 27 48 Critical Kills 2 | 1 1 . . . Critical Parts Destroyed 1 | 1 . . . . Critical Strikes 4 | 2 1 . . 1 Burn 1 | . . . . 1 Destroy 3 | 2 1 . . . Melee Attacks . | . . . . . Impact . | . . . . . Slashing . | . . . . . Piercing . | . . . . . Sneak Attacks . | . . . . . Combat Hostiles . | . . . . . Follow-up Attacks . | . . . . . Damage Inflicted 4621 | 453 1506 126 976 1560 Guns 2836 | 453 319 29 741 1294 Cannons . | . . . . . Explosions 1744 | . 1187 93 222 242 Melee . | . . . . . Ramming 41 | . . 4 13 24 Kinetic 1547 | 453 319 . 340 435 Thermal 1428 | . 481 29 197 721 Explosive 1150 | . 706 93 222 129 Electromagnetic 455 | . . . 204 251 Impact . | . . . . . Slashing . | . . . . . Piercing . | . . . . . Highest Corruption 1 | . . . . 1 Average Corruption 1 | . . . . 1 Corruption Purged . | . . . . . Corruption Blocked . | . . . . . Effects 2 | . . . . 2 Matter Fused 1 | . . . . 1 Data Loss (minor) 1 | . . . . 1 Overload Shots . | . . . . . Overflow Damage 156 | . 128 . 6 22 Projectiles . | . . . . . Explosions 156 | . 128 . 6 22 Melee . | . . . . . Knockbacks . | . . . . . Impact . | . . . . . Kinetic . | . . . . . Secondary . | . . . . . Self-Inflicted Damage 195 | . 56 . . 139 Shots 5 | . 2 . . 3 Rammed . | . . . . . Targets Rammed 8 | . . 1 1 6 Kicked 8 | . . 1 1 6 Crushed . | . . . . . Highest Temperature 344 | 6 8 63 129 344 Average Temperature 52 | 6 3 33 36 65 Received Heat Transfer 810 | . 126 27 270 387 Effects 2 | . . . . 2 Interference 2 | . . . . 2 Siege Activations . | . . . . . Robots Corrupted . | . . . . . Combat Hostiles . | . . . . . Parts Fried . | . . . . . Impact Corruptions . | . . . . . Robots Melted . | . . . . . Combat Hostiles . | . . . . . Parts Melted 1 | . . . . 1 Heat Transferred 2494 | . 400 74 444 1576 Parts Sabotaged . | . . . . . Parts Stolen . | . . . . . Parts Stripped . | . . . . . Power Chain Reactions 1 | . . . . 1 Alert | -11 -10 -10 -9 -9 ------- Run | Yrd Mat Min Mat Sto Peak Influence 702 | 60 539 274 284 702 Initial 194 | . 39 194 28 96 Average 239 | 26 271 193 160 383 Maximum Alert Level 3 | . 2 1 1 3 Low Security (%) 46 | 100 40 38 60 26 Level 1 32 | . 34 61 39 19 Level 2 20 | . 25 . . 53 Level 3 . | . . . . . Level 4 . | . . . . . Level 5 . | . . . . . High Security . | . . . . . Max Security . | . . . . . Squads Dispatched 8 | . 1 . 1 6 Investigation 2 | . 1 . . 1 Extermination . | . . . . . Reinforcement 4 | . . . 1 3 Assault 2 | . . . . 2 Garrison . | . . . . . Intercept . | . . . . . Searches Triggered . | . . . . . Construction Impeded . | . . . . . Haulers Reinforced . | . . . . . Active Scanning Responses . | . . . . . Cargo Convoy Interrupts . | . . . . . Stealth | -11 -10 -10 -9 -9 --------- Run | Yrd Mat Min Mat Sto Distress Signals 6 | . 3 . 1 2 Communications Jammed . | . . . . . Distress Signals . | . . . . . Times Spotted 89 | . 21 4 15 49 Peak Tracking Total 9 | . 4 2 4 9 Tactical Retreats 5 | . 1 . . 4 Traps | -11 -10 -10 -9 -9 ------- Run | Yrd Mat Min Mat Sto Traps Triggered 5 | . 3 . . 2 Indirectly . | . . . . . Trap Hack Attempts . | . . . . . Triggered . | . . . . . Disarmed . | . . . . . Reprogrammed . | . . . . . Reused . | . . . . . Traps Extracted . | . . . . . Installed . | . . . . . Triggered . | . . . . . Machines | -11 -10 -10 -9 -9 ---------- Run | Yrd Mat Min Mat Sto Machines Disabled 10 | . 7 . 1 2 Max in Single Turn 6 | . 6 . 1 2 Machines Repaired . | . . . . . Machines Dismantled . | . . . . . Machines Sabotaged . | . . . . . Overloaded Fab Kills . | . . . . . Hacking | -11 -10 -10 -9 -9 --------- Run | Yrd Mat Min Mat Sto Machines Accessed 11 | . 4 2 1 4 Terminals 7 | . 4 . 1 2 Fabricators . | . . . . . Repair Stations 1 | . . . . 1 Recycling Units 1 | . . . . 1 Scanalyzers . | . . . . . Garrison Access . | . . . . . Total Hacks 21 | . 9 2 1 9 Successful 10 | . 2 2 1 5 Failed 11 | . 7 . . 4 Catastrophic 4 | . 3 . . 1 Database Lockouts . | . . . . . Manual 2 | . 2 . . . Terminals 12 | . 9 . 1 2 Fabricators . | . . . . . Repair Stations 4 | . . . . 4 Recycling Units 3 | . . . . 3 Scanalyzers . | . . . . . Garrison Access . | . . . . . Terminal Hacks 6 | . 2 2 1 1 Record 2 | . 1 . 1 . Open Door 2 | . . 2 . . Branch Access Points 1 | . 1 . . . Hauler Manifests 1 | . . . . 1 Fabricator Hacks . | . . . . . Repair Station Hacks 3 | . . . . 3 Scan Component 2 | . . . . 2 Repair 1 | . . . . 1 Recycling Unit Hacks 1 | . . . . 1 Retrieve Matter 1 | . . . . 1 Scanalyzer . | . . . . . Garrison Access Hacks . | . . . . . Unauthorized Hacks . | . . . . . Terminals . | . . . . . Fabricators . | . . . . . Repair Stations . | . . . . . Recycling Units . | . . . . . Scanalyzers . | . . . . . Garrison Access . | . . . . . Data Cores Recovered . | . . . . . Used . | . . . . . Hacking Detections 7 | . 4 . . 3 Full Trace Events 4 | . 3 . . 1 Feedback Events . | . . . . . Feedback Blocked . | . . . . . Robot Schematics Acquired . | . . . . . Robots Built . | . . . . . Authchips . | . . . . . Time . | . . . . . Total Robot Build Rating . | . . . . . Part Schematics Acquired . | . . . . . Parts Built . | . . . . . Authchips . | . . . . . Time . | . . . . . Total Part Build Rating . | . . . . . Parts Repaired 1 | . . . . 1 Time 38 | . . . . 38 Parts Recycled . | . . . . . Recycled Matter . | . . . . . Retrieved Matter . | . . . . . Retrieved Components . | . . . . . Parts Scanalyzed . | . . . . . Part Schematics Acquired . | . . . . . Parts Damaged . | . . . . . Bothacking | -11 -10 -10 -9 -9 ------------ Run | Yrd Mat Min Mat Sto Used RIF Installer . | . . . . . Robots Hacked . | . . . . . Non-combat . | . . . . . Combat . | . . . . . Robot Hacks Applied . | . . . . . Relay Couplers Released . | . . . . . Fabnet Peak Effective % . | . . . . . Robots Rewired . | . . . . . Allies Hacked . | . . . . . Hacks Repelled . | . . . . . Allies | -11 -10 -10 -9 -9 -------- Run | Yrd Mat Min Mat Sto Total Allies 2 | . . . . 2 Largest Group 2 | . . . . 2 Highest-Rated Group 62 | . . . . 62 Highest-Rated Ally 31 | . . . . 31 Total Orders . | . . . . . Ally Attacks 14 | . . . . 14 Total Damage 207 | . . . . 207 Kills 3 | . . . . 3 Allies Corrupted . | . . . . . Allies Melted . | . . . . . Intel | -11 -10 -10 -9 -9 ------- Run | Yrd Mat Min Mat Sto Robot Analysis Total . | . . . . . Derelict Logs Recovered 2 | . . 2 . . Drone Launches . | . . . . . Drone Recoveries . | . . . . . Exploration | -11 -10 -10 -9 -9 ------------- Run | Yrd Mat Min Mat Sto Turns Passed 2699 | 298 611 466 559 765 Spaces Moved 1479 | 148 388 324 276 343 Core 8 | 3 2 . . 3 Treads . | . . . . . Legs 1469 | 145 386 324 274 340 Wheels . | . . . . . Hover . | . . . . . Flight 2 | . . . 2 . Fastest Speed 50 | 50 120 120 120 120 Average Speed 130 | 118 123 136 144 127 Slowest Speed 540 | 120 250 190 540 400 Overloaded Moves . | . . . . . Propulsion Burnouts . | . . . . . Robots Hopped . | . . . . . Cave-ins Triggered . | . . . . . Exploration Rate (%) 43 | 7 62 58 29 62 Regions Visited 4 Branch Regions 2 Pre-discovered Areas 1 | . . 1 . . Known Exits Taken 2 | . 1 . 1 . Unknown Exits Taken 2 | 1 . 1 . . Scrap Searched 2 | . . 2 . . Spaces Dug . | . . . . . Terrain Destroyed 135 | . 72 21 24 18 Melee . | . . . . . Projectile . | . . . . . AOE 135 | . 72 21 24 18 Terrain Rammed . | . . . . . Walls Destroyed . | . . . . . Machines Disabled . | . . . . . Actions | -11 -10 -10 -9 -9 --------- Run | Yrd Mat Min Mat Sto Total 1904 | 196 456 344 374 534 Wait 122 | . 1 3 33 85 Move 1475 | 147 387 323 275 343 Hop . | . . . . . Pick Up 27 | 7 5 4 4 7 Fast Attach 30 | 7 6 1 8 8 Attach 9 | . 1 . 3 5 Detach 1 | . . . 1 . Swap 17 | . 5 5 4 3 Drop 30 | . 10 5 10 5 Fire 185 | 35 41 2 35 72 Melee . | . . . . . Ram . | . . . . . Kick 8 | . . 1 1 6 Crush . | . . . . . Escape Stasis . | . . . . . Rewire . | . . . . . Trap . | . . . . . Miscellaneous . | . . . . . Route ------- -11/Scrapyard -10/Materials (discovered 4 exits: *Mat x2 / *Min / [*Sub]) -10/Mines -9/Materials -9/Storage History --------- Turn | Location | Event 17 | -11/Scrapyard | Discovered new exit (range 16) 299 | -11/Scrapyard | Entered Materials 300 | -10/Materials | Build established: Mutant 558 | -10/Materials | Identified exit to Mines 646 | -10/Materials | Discovered new exit (range 5) 705 | -10/Materials | Discovered new exit (range 16) 763 | -10/Materials | Discovered new exit (range 16) 910 | -10/Materials | Entered Mines 1013 | -10/Mines | Met a Derelict bent on vengeance 1024 | -10/Mines | Joined a pair of Derelicts in attacking an 0b10 outpost 1074 | -10/Mines | Found the Drone Emporium 1082 | -10/Mines | Found Prototype Device 1083 | -10/Mines | Identified Splice Drone Bay 1123 | -10/Mines | Learned Materials terminal intel 1126 | -10/Mines | Met a Derelict who couldn't figure out how to use a Trap Extractor 1171 | -10/Mines | Discovered new exit (range 12) 1196 | -10/Mines | Learned location of Zion (-7) 1227 | -10/Mines | Found a damaged Exp. Sensor Array with a note attached 1231 | -10/Mines | Found Prototype Device 1232 | -10/Mines | Identified Exp. Sensor Array 1376 | -10/Mines | Entered Materials 1376 | -9/Materials | Evolved 2 slots: Propulsion x1, Utility x1 1377 | -9/Materials | Loaded intel: 12 terminal locations 1894 | -9/Materials | Discovered new exit (range 15) 1934 | -9/Materials | Identified exit to Storage 1935 | -9/Materials | Entered Storage 1971 | -9/Storage | Build established: Scavenger-Mutant 2069 | -9/Storage | Repaired Hpw. Shotgun 2293 | -9/Storage | Lost 4 parts (1n1u2w) 2295 | -9/Storage | Core integrity fell below 50% 2567 | -9/Storage | Core integrity fell below 20% 2597 | -9/Storage | Met a pair of Derelict thieves 2700 | -9/Storage | Destroyed by L-31 Rogue with Katana Last Messages --------------- ALERT: Breach in storage area. Dispatching assault force. T9-3G8(g): "So much for stealth, let's take what we have and get out of here before it's too late." Y-45 Defender destroyed. K-01 Serf collects debris. Kicked U-05 Engineer. C-30 ARC bursts open, deploying its payload. G-47 Trooper unfolds itself. L-31 Rogue unfolds itself. G-34 Mercenary unfolds itself. M-13 Machinist unfolds itself. C-30 ARC bursts open, deploying its payload. G-47 Trooper unfolds itself. G-34 Mercenary unfolds itself. M-13 Machinist unfolds itself. M-13 Machinist repairs M-13 Machinist. K-01 Serf collects debris. G-47 Trooper destroyed. K-01 Serf collects debris. Hvy. Assault Rifle destroyed. Map ----- +----------------------------------------------------+ | ????????????????????????????????????????? | | ????????????????????????????????????????? | | ????????????????????????????????????????? | | ????????????????????????????????????????? | | ????????????????????????????????????????? | | ????????????????????????????????????????? | | ????????????????????????????????????????? | | ????????????????????????????????????????? | | ????????????????????????????????????????? | | ????????????????????????????????????????? | | ????????????????????????????????????????? | | ????????????????????????????????????????? | | ????????????????????????????????????????? | | ????????????????????????????????????????? | | ????????????????????????????????????????? | | ????????????????????????????????????????? | | ????????????????????????????????????????? | | ????????????????????????????????????????? | | ???????????????########?????????????????? | | ???????????????# ??????????????????? | | ???????????????# ?????????????????? | | ???????????????# ??????????????????? | | ???????????????# ^#??????????????????? | | ???????????????# #??????#####???????? | | ?????????????"?# a#?????? #???????? | | ?????????????" #@ #??????" #???????? | | ?????????????" #l o#??????" x#???????# | | ?????????????" + a##?????" #???????# | | ????????????" # T#?????" ######### | | ???????????" # ##?????" ## | | ?????????? ?# #?????"" ## % | | ?????????####### ##????? ## | | ??????????????# #####+##+### # | | ???????????x??# % % % # | | ??????????????# T %% # | | ??????????????# % % % % | | ??????????????# ########/#########%## | | ??????????????#######?# #???#%#? | | ??????????????????????## #?###+## | | ???????????????????????# """" ###[ %[ | | ???????????????????????# """" ##" | | ???????????????????????# """" ##"=% | | ???????????????????????# """" ###% | | ???????????????????????# ??## * | | ???????????????????????# ????## | | ???????????????????????#######????# | | ??????????????????????????????????## | | ???????????????????????????????????#####+ | | ???????????????????????????????????## | | ??????????????????????????????????#### | +----------------------------------------------------+ Best States ------------- Heat Dissipation 28 Energy Generation 14 Energy Capacity 280 Matter Stores 300 Matter Capacity 300 Sight Range 16 Robot Scan Range 20 Terrain Scan Range 16 Terrain Scan Density 10 ECM Strength 1 Armor Coverage 150 Evasion (%) 55 Item Schematics ----------------- None Robot Schematics ------------------ None Fabricated ------------ Nothing Alien Tech Used ----------------- None Achievements -------------- None Challenges ------------ None Game ------ Seed BlastSchematicMagmablaster Manual? 0 Play Time 00:28:10 Cumulative 10.4 hours Start 2024.11.14 @ 02:31:33 End 2024.11.14 @ 02:59:16 Sessions 1 Manual Loads 0 Difficulty Rogue Special Mode None Game No. 9 Rogue 9 Adventurer 0 Explorer 0 Win Type - Total 0 Types 0/0/0/0/0/0/0/0/0 Lore% 4 Gallery% 18 Achievement% 17 Wizard Run 0 Options --------- Layout 1 ASCII 0 Keyboard 0 Movement Mouse Keybinds 0 Fullscreen 2 Font 32/SmallcapsGlow Map View 77x35 Zoom Use 0% Tactical HUD 0 Map Filters NONE Filters NONE Steam 1 RUN: 95a4b39b-8bba-4d4f-a006-9f26d7836596